bitfinex/quotes_ETHUSD_20241212
["timestamp","ask_amount","ask_price","bid_price","bid_amount"]
[1734021110517,1.5067,3944.8,3944.0,0.14]
[1734021110837,0.22000611,3944.7,3944.0,0.14]
[1734021111482,0.19467289,3944.7,3944.0,0.14]
[1734021112118,0.02533322,3944.6,3944.0,0.14]
[1734021113227,0.22000611,3944.7,3944.0,0.14]
[1734021113432,0.19467289,3944.7,3944.0,0.14]
[1734021113810,1.4724,3945.5,3944.1,1.5055]
[1734021114040,0.02533322,3945.4,3944.1,1.5055]
[1734021114749,1.4724,3945.5,3944.1,1.5055]
[1734021115837,1.4724,3945.9,3944.2,2.02534927]
[1734021116040,1.4724,3945.9,3944.2,2.0]
[1734021116191,0.14724,3945.8,3944.3,1.7195]
[1734021116893,0.02533322,3945.7,3944.3,1.7195]
[1734021118514,0.14724,3945.8,3944.3,1.7195]
[1734021118717,1.4724,3945.9,3944.3,1.7195]
[1734021118917,0.02533322,3946.3,3944.6,2.0]
[1734021119233,1.3109,3946.7,3945.2,2.0]
[1734021119436,0.01385429,3946.8,3945.2,2.0]
[1734021119437,0.01385429,3946.8,3945.6,0.14]
[1734021119621,0.01385429,3946.8,3945.7,1.2517]
[1734021120832,0.01385429,3946.8,3945.8,1.2770383]
[1734021121019,0.01385429,3946.8,3945.8,1.2517]
[1734021123449,0.01385429,3946.8,3946.1,2.0]
[1734021123648,0.01385429,3946.8,3946.2,1.322]
[1734021124233,0.01385429,3946.8,3946.2,1.34733318]
[1734021124461,0.01385429,3946.8,3946.3,0.34873332]
[1734021125003,0.01385429,3946.8,3946.5,2.0]
[1734021125177,0.01385429,3946.8,3946.6,1.35883269]
[1734021125659,0.01385429,3946.8,3946.6,1.3335]
[1734021125861,0.01385429,3946.8,3946.7,0.02533031]
[1734021126087,0.01385429,3946.8,3946.7,1.60098974]
[1734021127274,0.01385429,3946.8,3946.7,1.3057]
[1734021128051,0.01385429,3946.8,3946.5,0.14]
[1734021128496,0.01385429,3946.8,3946.6,0.02533752]
[1734021128645,0.01385429,3946.8,3946.5,0.14]
[1734021130949,0.01385429,3946.8,3946.6,2.02533318]
[1734021131150,0.01385429,3946.8,3946.7,1.69546439]
[1734021131350,0.01385429,3946.8,3946.7,0.38186439]
[1734021131585,0.01385429,3946.8,3946.7,4.71356439]
[1734021133406,0.01385429,3946.8,3946.7,7.24726439]
[1734021133610,0.356929,3948.3,3947.9,1.3129]
[1734021133771,0.356929,3948.3,3948.0,0.34529]
[1734021134103,0.356929,3948.3,3948.2,2.0]
[1734021134280,0.356929,3948.3,3948.2,4.5328]
[1734021134906,0.356929,3948.3,3948.2,2.5328]
[1734021135408,0.356929,3948.3,3948.2,2.55812365]
[1734021135591,0.356929,3948.3,3948.2,4.14353306]
[1734021135914,0.356929,3948.3,3948.2,4.28353306]
[1734021136082,0.356929,3948.3,3948.2,4.30885109]
[1734021136482,0.356929,3948.3,3948.2,4.28353306]
[1734021137084,0.356929,3948.3,3948.2,3.9848]
[1734021138573,0.356929,3948.3,3948.2,2.6728]
[1734021139589,0.356929,3948.3,3948.2,3.977]
[1734021140854,0.356929,3948.3,3948.2,5.977]
[1734021143688,0.356929,3948.3,3948.2,4.6728]
[1734021145527,0.356929,3948.3,3948.2,2.6728]
[1734021150363,1.555829,3948.3,3948.2,2.6728]
[1734021150639,1.7114119,3948.3,3948.2,2.6728]
[1734021150850,1.79046009,3948.3,3948.2,2.6728]
[1734021151148,0.356929,3948.3,3948.2,2.6728]
[1734021151738,0.356929,3948.3,3948.2,2.69812452]
[1734021151936,0.356929,3948.3,3948.2,7.27628533]
[1734021152138,0.356929,3948.3,3948.2,6.9692]
[1734021154190,0.356929,3948.3,3948.2,5.6728]
[1734021154875,0.356929,3948.3,3948.2,6.9302]
[1734021155295,0.356929,3948.3,3948.2,2.6728]
[1734021155599,0.11187791,3948.3,3948.2,3.95548133]
[1734021155897,0.11187791,3948.3,3948.2,3.95548004]
[1734021156423,1.197,3950.2,3949.6,2.0]
[1734021156601,0.07900782,3951.5,3949.7,0.02531303]
[1734021156769,1.27600782,3951.4,3949.7,2.5318]
[1734021157095,0.62487422,3952.2,3949.7,2.5318]
[1734021157096,1.197,3951.2,3949.7,2.5318]
[1734021157300,1.2637,3951.0,3950.3,0.14]
[1734021157610,0.07900782,3950.9,3950.3,2.6715]
[1734021157812,0.2132786,3950.8,3950.3,2.6715]
[1734021157992,0.07900782,3950.7,3950.3,2.6715]
[1734021158165,0.07900782,3950.6,3950.3,2.6715]
[1734021158364,0.13427078,3950.8,3950.3,2.6715]
[1734021158365,0.07900782,3950.5,3950.3,2.6715]
[1734021158665,0.07899953,3950.7,3950.3,2.6715]
[1734021158864,0.07594998,3950.6,3950.3,2.6715]
[1734021159060,0.13427078,3950.8,3950.3,2.6715]
[1734021160663,1.2637,3951.0,3950.3,2.6715]
[1734021161898,3.31789486,3951.8,3950.6,2.0]
[1734021161899,1.198,3951.8,3950.6,2.0]
[1734021162101,1.198,3951.8,3951.5,0.14]
[1734021163327,1.748,3951.6,3951.5,0.14]
[1734021164215,1.198,3951.6,3951.5,0.14]
[1734021164521,1.748,3951.6,3951.5,0.14]
[1734021164932,1.9228,3951.6,3951.5,0.14]
[1734021167015,1.3728,3951.6,3951.5,0.14]
[1734021169461,1.9228,3951.6,3951.5,0.14]
[1734021170020,1.3728,3951.6,3951.5,0.14]
[1734021171065,0.25378558,3951.6,3951.5,0.14]
[1734021171263,0.1748,3951.6,3951.5,0.14]
[1734021171466,0.25378558,3951.6,3951.5,0.14]
[1734021172472,0.1748,3951.6,3951.5,0.14]
[1734021172819,0.07898558,3951.7,3951.5,0.14]
[1734021173122,0.07898558,3952.0,3951.5,0.14]
[1734021173323,1.2755,3952.1,3951.5,0.14]
[1734021175651,1.1971,3952.4,3951.5,0.14]
[1734021175856,0.21949632,3952.3,3951.5,0.14]
[1734021176062,0.21949632,3952.3,3951.6,1.2208]
[1734021176220,0.14051074,3952.3,3951.6,1.2208]
[1734021176854,0.16584396,3952.3,3951.5,0.14]
[1734021177717,0.24482954,3952.3,3951.5,0.14]
[1734021177923,0.44419295,3952.2,3951.5,0.14]
[1734021178383,0.46952617,3952.2,3951.5,0.14]
[1734021178667,0.44419295,3952.2,3951.5,0.14]
[1734021179429,0.02533322,3952.1,3951.5,0.14]
[1734021180366,0.9548,3951.8,3951.5,0.14]
[1734021180542,0.56268725,3951.7,3951.5,0.14]
[1734021180740,0.07897639,3951.6,3951.5,0.14]
[1734021181054,0.07898922,3951.6,3951.5,0.14]
[1734021181439,0.02533322,3951.7,3951.5,0.14]
[1734021181644,0.07898829,3951.6,3951.5,0.14]
[1734021181987,0.23990044,3951.6,3951.5,0.14]
[1734021182629,0.78990044,3951.6,3951.5,0.14]
[1734021182833,0.23990044,3951.6,3951.5,0.14]
[1734021183931,0.07898829,3951.7,3951.5,0.14]
[1734021184135,0.07898829,3952.1,3951.5,0.14]
[1734021184442,0.07898829,3952.7,3951.6,0.9716]
[1734021184627,0.07898829,3952.6,3951.6,1.1116]
[1734021184828,0.07898829,3952.5,3951.6,1.1116]
[1734021185075,0.07898829,3952.4,3951.6,1.1116]
[1734021185261,0.07898829,3952.3,3951.6,1.1116]
[1734021185481,0.07898829,3952.2,3951.6,1.1116]
[1734021185773,0.9725,3952.9,3951.6,1.1116]
[1734021185974,0.07896537,3952.8,3951.6,1.1116]
[1734021186173,0.07896537,3952.7,3951.6,1.1116]
[1734021186379,0.07896537,3952.6,3952.0,0.9545]
[1734021186594,0.07896537,3953.3,3952.0,1.0945]
[1734021186767,4.52131923,3954.5,3952.4,0.937]
[1734021186768,3.99676631,3954.5,3952.4,0.937]
[1734021186971,0.07894938,3953.2,3952.4,0.937]
[1734021187198,0.07894456,3953.1,3952.4,0.937]
[1734021187350,0.07894456,3953.1,3952.4,1.2447]
[1734021187550,0.0789478,3953.6,3952.4,1.2447]
[1734021187884,0.0789478,3953.5,3952.4,0.937]
[1734021188188,0.9334,3953.7,3952.4,0.937]
[1734021188189,0.0789478,3953.4,3952.4,0.937]
[1734021188490,0.0789478,3953.3,3952.4,0.937]
[1734021188694,0.0789478,3953.2,3952.4,0.937]
[1734021188892,0.0789478,3953.6,3952.4,0.937]
[1734021189192,0.0789478,3953.5,3952.4,0.937]
[1734021189393,0.0789478,3953.4,3952.4,0.937]
[1734021189554,0.0789478,3953.3,3952.4,0.937]
[1734021189756,0.0789478,3953.6,3952.4,1.2447]
[1734021190112,0.0789478,3953.5,3952.4,1.2447]
[1734021190269,0.12632549,3954.3,3952.4,1.2447]
[1734021190270,0.0789478,3953.6,3952.4,1.2447]
[1734021190598,0.0789478,3954.0,3952.4,1.2447]
[1734021190810,0.8946,3954.1,3952.4,1.2447]
[1734021190811,0.0789478,3953.9,3952.4,1.2447]
[1734021190968,0.0789478,3953.8,3952.5,1.30669941]
[1734021191157,0.0789478,3953.7,3952.5,1.30669941]
[1734021191502,0.0789478,3954.0,3952.5,1.30669941]
[1734021191797,0.0789478,3954.0,3952.5,0.9797]
[1734021191798,0.0789478,3953.9,3952.5,0.9797]
[1734021191959,0.0789478,3953.8,3952.5,0.9797]
[1734021192163,0.0789478,3953.7,3952.5,0.9797]
[1734021192386,0.0789478,3954.0,3952.5,0.9797]
[1734021192589,0.0789478,3953.9,3952.5,0.9797]
[1734021192917,0.07894245,3953.8,3952.7,2.0]
[1734021193115,0.07894245,3954.0,3952.7,2.0]
[1734021193414,0.07894245,3954.0,3952.8,0.9774]
[1734021193561,0.07894245,3954.4,3952.8,0.9774]
[1734021193760,0.07894245,3954.3,3952.8,0.9774]
[1734021194015,0.07894245,3954.2,3952.8,1.304937]
[1734021194305,0.07894245,3954.4,3952.8,1.304937]
[1734021194474,0.07894245,3954.3,3952.8,1.304937]
[1734021194803,0.07894245,3954.4,3952.8,1.304937]
[1734021195107,0.07894245,3954.3,3952.8,1.304937]
[1734021195314,0.07894245,3954.4,3953.0,0.9855]
[1734021195463,0.07894245,3954.3,3953.0,0.9855]
[1734021195661,0.07894245,3954.4,3953.0,0.9855]
[1734021195862,0.07894245,3954.4,3953.1,0.14]
[1734021196065,0.9158,3954.5,3953.1,0.14]
[1734021196315,0.9158,3954.5,3953.1,2.28419861]
[1734021196509,0.07894245,3954.7,3953.2,1.08038846]
[1734021196814,0.12597049,3955.3,3953.2,1.08038846]
[1734021196815,0.07894245,3954.9,3953.6,0.9151]
[1734021196989,1.03627049,3955.3,3953.7,0.02528734]
[1734021196990,0.07894245,3955.2,3953.7,0.02528734]
[1734021197163,2.94766047,3956.1,3953.7,0.02528734]
[1734021197164,0.9605,3955.7,3954.1,2.0]
[1734021197361,0.07894245,3955.6,3954.3,0.9295]
[1734021197902,0.07894245,3955.6,3954.5,2.0]
[1734021198212,0.13121631,3955.8,3954.5,2.0]
[1734021198213,0.13121631,3955.8,3954.6,0.9295]
[1734021198708,0.9605,3956.2,3954.6,1.0695]
[1734021199006,0.9605,3956.2,3954.6,1.35279572]
[1734021199203,0.9605,3956.2,3954.6,1.0695]
[1734021199204,0.57533322,3956.1,3954.6,1.0695]
[1734021199403,0.62894245,3956.1,3954.6,1.0695]
[1734021199710,0.57533322,3956.0,3954.6,1.0695]
[1734021200224,0.55,3956.0,3954.6,1.0695]
[1734021200441,0.07894245,3956.1,3954.6,1.0695]
[1734021200587,0.41677473,3956.0,3954.7,0.30695]
[1734021201531,0.41677473,3956.0,3954.6,1.0695]
[1734021201532,0.57533322,3955.9,3954.6,1.0695]
[1734021201734,0.02533322,3956.0,3954.6,1.0695]
[1734021201952,0.57533322,3955.8,3954.6,1.0695]
[1734021202435,0.02533322,3955.8,3954.6,1.0695]
[1734021202632,3.02533322,3955.8,3954.6,1.0695]
[1734021202801,1.28910567,3955.7,3954.6,1.0695]
[1734021203008,0.02533322,3955.6,3954.6,1.0695]
[1734021204221,1.28910567,3955.7,3954.6,1.0695]
[1734021204391,0.02533322,3955.6,3954.6,1.0695]
[1734021204590,3.55,3955.3,3954.6,0.14]
[1734021204816,0.55,3955.1,3954.6,0.14]
[1734021205005,0.55,3954.7,3954.6,0.14]
[1734021205200,0.62891482,3954.7,3954.6,0.14]
[1734021205609,0.57533322,3954.7,3954.6,0.14]
[1734021205891,0.65427632,3954.7,3954.6,0.14]
[1734021206238,1.3295769,3954.7,3954.6,0.14]
[1734021206529,1.40851836,3954.7,3954.6,0.14]
[1734021206839,0.55,3954.3,3952.5,0.8608]
[1734021207007,3.0,3953.9,3952.5,0.8608]
[1734021207211,0.62894146,3953.8,3952.5,0.8608]
[1734021207403,0.55,3953.6,3952.5,0.8608]
[1734021207736,0.57533322,3953.6,3952.5,0.8608]
[1734021207945,0.55,3953.6,3952.5,0.8608]
[1734021208293,0.55,3953.4,3951.8,0.8923]
[1734021208604,0.07894146,3953.5,3952.3,0.8923]
[1734021208790,0.55,3953.9,3952.4,0.28923]
[1734021208993,0.57533322,3953.9,3952.4,0.28923]
[1734021209200,0.65428159,3953.9,3952.4,0.28923]
[1734021209401,0.62894837,3953.9,3952.4,0.28923]
[1734021210137,2.94766047,3953.5,3952.3,0.8923]
[1734021210354,3.65428159,3953.4,3952.3,0.8923]
[1734021210630,0.55,3953.2,3952.3,0.8923]
[1734021210810,0.86213322,3953.1,3951.8,0.8215]
[1734021211004,0.55,3953.0,3951.8,0.8215]
[1734021211207,3.55,3952.4,3951.4,0.8218]
[1734021211420,0.55,3952.2,3951.4,0.8218]
[1734021211623,0.02533322,3952.1,3951.4,0.8218]
[1734021211825,0.55,3952.2,3951.4,0.8218]
[1734021212337,0.8839,3952.7,3951.4,0.8218]
[1734021212338,0.55,3952.5,3951.4,0.8218]
[1734021212539,0.55,3952.3,3951.4,0.8218]
[1734021213040,0.57533322,3952.3,3951.4,0.8218]
[1734021213237,0.55,3952.3,3951.4,0.8218]
[1734021213839,0.02533322,3952.2,3951.4,0.8218]
[1734021214139,0.8326,3952.1,3950.6,0.8928]
[1734021214297,3.55,3951.8,3950.6,0.8928]
[1734021214504,0.55,3951.6,3950.6,0.8928]
[1734021215134,0.6289914,3951.7,3950.6,0.8928]
[1734021215549,0.62899123,3951.7,3950.6,0.8928]
[1734021215752,0.55,3951.5,3950.6,0.8928]
[1734021216347,0.02533322,3951.4,3950.6,0.8928]
[1734021216713,0.55,3951.5,3950.6,0.8928]
[1734021216914,0.02533322,3951.4,3950.6,0.8928]
[1734021217116,0.55,3951.2,3949.8,0.8456]
[1734021217346,0.55,3951.0,3949.8,0.8456]
[1734021217947,0.57533322,3951.0,3949.8,0.8456]
[1734021218341,0.55,3951.0,3949.8,0.8456]
[1734021218546,0.55,3951.2,3949.8,0.8456]
[1734021219039,0.8737,3951.8,3950.1,2.0]
[1734021219362,0.8737,3951.8,3950.2,1.0435]
[1734021219855,3.02533322,3951.7,3950.2,0.8435]
[1734021220053,2.94766047,3951.3,3950.2,0.8435]
[1734021220355,0.55,3951.2,3950.2,0.8435]
[1734021220931,0.02533322,3951.1,3950.2,0.8435]
[1734021221130,0.55,3951.2,3950.2,0.8435]
[1734021221353,0.55,3951.0,3950.2,0.8435]
[1734021221733,0.02533322,3950.9,3950.2,0.8435]
[1734021222358,0.55,3950.8,3949.8,0.8547]
[1734021222923,0.02533322,3950.7,3949.8,0.8547]
[1734021223260,0.55,3950.8,3949.8,0.8547]
[1734021223462,0.55,3950.6,3949.8,0.8547]
[1734021225271,0.16460654,3950.7,3948.5,0.02531609]
[1734021225272,0.55,3950.2,3948.5,2.0]
[1734021225451,0.55,3950.0,3948.4,0.831]
[1734021225627,0.55,3949.7,3948.4,0.831]
[1734021225828,0.02533322,3949.6,3948.4,0.831]
[1734021226058,0.55,3949.4,3948.4,0.831]
[1734021226324,2.97299369,3949.3,3947.5,2.0]
[1734021226524,3.55,3949.2,3947.6,0.8935]
[1734021226736,0.02533322,3949.1,3947.6,0.8935]
[1734021227236,3.55,3949.2,3947.6,0.8935]
[1734021227552,0.55,3949.0,3947.6,0.8935]
[1734021228767,0.55,3949.0,3947.3,2.0]
[1734021228768,2.94766047,3948.7,3947.3,2.0]
[1734021228953,2.94766047,3948.7,3947.1,0.8857]
[1734021228954,0.57533322,3948.6,3947.1,0.8857]
[1734021229155,1.3721,3948.1,3947.1,0.8857]
[1734021229355,0.55,3947.9,3947.1,0.8857]
[1734021229667,0.02533322,3947.8,3946.5,0.8857]
[1734021229870,0.8221,3948.1,3946.8,2.0]
[1734021230085,0.55,3948.4,3947.0,0.8857]
[1734021231497,0.57533322,3948.4,3947.0,0.8857]
[1734021231712,0.55,3948.4,3947.1,0.28857]
[1734021232741,0.8221,3948.5,3947.2,2.0]
[1734021232957,0.8221,3948.9,3947.6,2.0]
[1734021233134,0.8221,3949.2,3947.7,0.8857]
[1734021234070,0.02533322,3949.1,3947.7,0.8857]
[1734021234275,0.02533322,3949.1,3947.8,0.28857]
[1734021234576,0.57533322,3949.1,3947.7,0.8857]
[1734021234776,3.55,3948.9,3947.7,0.8857]
[1734021235281,0.02533322,3948.9,3947.7,0.8857]
[1734021235789,0.55,3948.8,3947.7,0.8857]
[1734021235990,0.02533322,3948.7,3947.7,0.8857]
[1734021236880,0.55,3948.6,3947.7,0.8857]
[1734021237181,0.37763259,3948.7,3946.6,0.8841]
[1734021237182,3.0,3948.3,3946.6,0.8841]
[1734021237385,0.57533322,3948.2,3946.6,0.8841]
[1734021237568,0.65439356,3948.2,3946.8,2.0]
[1734021237888,0.55,3948.2,3946.8,2.0]
[1734021238098,0.55,3948.2,3946.9,0.28841]
[1734021238099,1.28200605,3948.2,3946.9,0.28841]
[1734021238785,1.28200605,3948.2,3946.6,0.8841]
[1734021239186,1.38639897,3948.2,3946.6,0.8841]
[1734021239359,0.55,3948.0,3946.6,0.8841]
[1734021239559,0.02533322,3947.9,3946.6,0.8841]
[1734021240109,3.55,3947.8,3946.6,0.8841]
[1734021240258,0.55,3947.6,3946.6,0.8841]
[1734021242874,0.02533322,3947.5,3946.4,2.0]
[1734021243075,0.02533322,3947.5,3946.1,0.8574]
[1734021243076,0.55,3947.3,3946.1,0.8574]
[1734021243395,0.57533322,3947.3,3946.1,0.8574]
[1734021243598,0.8796,3947.4,3946.1,0.8574]
[1734021243599,3.90632445,3947.4,3946.1,0.8574]
[1734021243762,0.39063245,3947.3,3946.1,0.8574]
[1734021244489,0.46970241,3947.3,3946.1,0.8574]
[1734021244692,0.46970207,3947.3,3946.1,0.8574]
[1734021245504,0.57533322,3947.2,3946.1,0.8574]
[1734021245886,0.57533322,3947.2,3945.6,0.8616]
[1734021246087,0.77932261,3947.1,3945.6,0.8616]
[1734021246289,0.8796,3947.4,3946.0,0.8616]
[1734021246917,0.57533322,3947.3,3946.0,0.8616]
[1734021247330,0.55,3947.3,3946.0,0.8616]
[1734021247495,0.02533322,3947.2,3946.0,0.8616]
[1734021247682,0.55,3947.0,3945.5,0.8636]
[1734021247881,0.46678654,3946.9,3945.5,1.14996]
[1734021248286,0.46678654,3946.9,3945.5,0.8636]
[1734021248287,0.8289,3946.7,3945.5,0.8636]
[1734021248482,0.02533322,3946.6,3945.5,0.8636]
[1734021249004,0.02533322,3946.6,3945.3,2.0]
[1734021249237,3.8289,3946.7,3945.3,2.0]
[1734021249238,0.8289,3946.7,3945.3,2.0]
[1734021249610,0.8498,3947.4,3946.1,2.0]
[1734021249935,0.8498,3947.4,3946.3,0.8386]
[1734021250720,0.8498,3947.4,3946.5,2.0]
[1734021250922,0.8509,3948.3,3946.5,2.0]
[1734021251114,0.87623322,3948.2,3946.5,2.0]
[1734021251422,0.8509,3947.9,3946.3,0.8386]
[1734021251729,0.40518927,3947.8,3946.3,0.8386]
[1734021251881,0.37985605,3947.8,3946.3,2.8386]
[1734021252080,0.55,3947.7,3946.3,2.8386]
[1734021252406,0.07906193,3947.6,3946.3,2.8386]
[1734021252609,0.07906193,3947.5,3946.3,2.8386]
[1734021252814,0.55,3947.7,3946.3,3.14246]
[1734021253021,0.07906407,3947.4,3946.3,3.14246]
[1734021253219,0.07906407,3947.3,3946.3,3.14246]
[1734021253442,0.07906407,3947.2,3946.3,3.14246]
[1734021253644,0.07906407,3947.1,3946.3,3.14246]
[1734021253801,0.55,3947.7,3946.4,0.314246]
[1734021254007,0.07906282,3947.6,3946.4,0.314246]
[1734021254334,0.07906282,3947.5,3946.4,0.314246]
[1734021254539,0.07906282,3947.4,3946.4,0.314246]
[1734021254735,0.07906282,3947.3,3946.4,0.314246]
[1734021254897,0.89896282,3947.2,3946.4,0.314246]
[1734021255097,0.55,3947.7,3944.9,2.0]
[1734021255098,3.0,3946.8,3944.9,2.0]
[1734021255323,0.8199,3946.1,3944.6,0.8736]
[1734021255498,0.62906282,3946.0,3944.6,0.8736]
[1734021255706,0.07906282,3945.9,3944.6,0.8736]
[1734021256116,0.07906282,3945.8,3944.6,0.8736]
[1734021256293,0.07906282,3945.7,3944.6,0.8736]
[1734021256499,0.07906282,3945.6,3945.0,2.0]
[1734021256694,0.8199,3946.1,3945.0,2.0]
[1734021256695,0.07906282,3945.5,3945.0,2.0]
[1734021256935,0.079094,3945.4,3945.0,2.0]
[1734021257235,0.8199,3946.1,3945.0,2.0]
[1734021257531,0.07909245,3946.0,3945.1,0.2]
[1734021257731,0.07909245,3945.9,3945.1,0.2]
[1734021257934,0.8199,3946.1,3945.1,0.2]
[1734021257935,0.07909245,3945.8,3945.1,0.2]
[1734021258097,0.07909245,3945.7,3945.1,2.7346]
[1734021258294,3.0,3946.9,3945.1,2.7346]
[1734021258295,0.8662,3946.9,3945.5,2.0]
[1734021258539,0.40587875,3946.8,3945.5,4.5345]
[1734021258844,2.40174681,3946.0,3945.5,2.5345]
[1734021259014,0.07908407,3945.9,3945.5,2.5345]
[1734021259335,0.07908407,3945.8,3945.5,2.5345]
[1734021259637,1.377,3945.6,3945.5,0.33661328]
[1734021259838,2.22268446,3945.6,3945.5,0.33661328]
[1734021260039,2.19735124,3945.6,3945.5,0.33661328]
[1734021260210,1.45608407,3945.6,3945.5,0.33661328]
[1734021260810,1.45608407,3945.6,3943.3,0.0253529]
[1734021260811,0.8196,3944.6,3943.3,0.0253529]
[1734021261148,0.02533322,3945.8,3942.0,2.005]
[1734021261149,0.55,3944.2,3942.4,2.0]
[1734021261367,0.55,3944.2,3942.1,0.8162]
[1734021261368,2.95658762,3943.8,3942.1,0.8162]
[1734021261662,2.95658762,3943.8,3942.1,1.09832]
[1734021261663,0.55,3943.6,3942.1,1.09832]
[1734021261811,0.55,3943.4,3942.1,0.28212]
[1734021262137,0.55,3943.2,3942.0,0.005]
[1734021262520,0.55,3943.5,3942.1,2.02363317]
[1734021262897,0.55,3943.6,3942.7,0.8603]
[1734021263099,0.55,3943.6,3942.8,0.02380288]
[1734021263604,0.07913491,3944.2,3943.1,2.0]
[1734021263961,0.02533322,3944.2,3943.2,0.02379196]
[1734021264396,0.8525,3944.3,3943.5,2.0]
[1734021264799,0.8525,3944.3,3943.1,0.20238029]
[1734021264800,0.8525,3944.3,3943.6,0.02377507]
[1734021265255,0.8597,3944.6,3942.9,2.0]
[1734021265558,0.8597,3944.6,3943.0,3.0]
[1734021265700,0.55,3944.5,3943.0,0.02376755]
[1734021266942,1.3692,3943.6,3942.0,0.005]
[1734021267238,1.3692,3943.6,3942.3,2.0]
[1734021267445,1.3692,3943.6,3942.4,0.28109]
[1734021267739,0.23313691,3944.5,3942.4,0.28109]
[1734021267740,0.8192,3944.3,3943.3,2.0]
[1734021267954,0.8192,3944.3,3943.4,0.8109]
[1734021268676,0.8192,3944.3,3942.5,0.28759833]
[1734021268677,0.8192,3944.3,3942.9,2.0]
[1734021269319,0.8196,3944.1,3942.4,0.28109]
[1734021269520,0.55,3943.9,3942.4,0.28109]
[1734021269826,0.55,3943.6,3942.1,2.8226]
[1734021270141,0.55,3943.6,3942.0,0.005]
[1734021270142,0.55,3943.3,3942.0,0.005]
[1734021270344,0.02533322,3943.2,3942.0,0.005]
[1734021270973,0.55,3943.3,3942.0,0.005]
[1734021271272,0.8203,3944.0,3942.9,2.0]
[1734021271490,0.8203,3944.0,3943.0,0.8259]
[1734021272179,0.8203,3944.0,3943.3,2.0]
[1734021272380,0.02533322,3944.9,3943.3,2.0]
[1734021272827,0.8904,3944.8,3942.9,2.2]
[1734021273026,0.8904,3944.6,3942.9,2.2]
[1734021273632,0.55,3944.5,3943.1,0.827]
[1734021274378,0.8904,3944.6,3943.6,2.0]
[1734021275812,0.55,3944.5,3943.6,2.0]
[1734021276012,0.8904,3944.6,3943.6,2.0]
[1734021276516,0.8468,3945.4,3944.1,2.8148]
[1734021276720,1.23978926,3945.4,3944.1,3.09628]
[1734021276868,0.8468,3946.0,3944.6,2.0]
[1734021277068,0.8468,3945.0,3943.4,0.8148]
[1734021277379,0.02533322,3944.9,3943.4,0.8148]
[1734021278263,0.57533322,3944.9,3943.4,0.8148]
[1734021278498,0.57533322,3944.9,3942.0,0.65610621]
[1734021278499,0.852,3944.6,3943.0,0.8792]
[1734021278713,0.57533322,3944.5,3942.7,2.0]
[1734021279213,0.55,3944.5,3942.8,0.02535015]
[1734021279500,0.55,3944.5,3943.1,2.0]
[1734021280508,0.57533322,3944.5,3943.1,2.0]
[1734021280666,0.55,3944.3,3943.1,2.0]
[1734021281492,0.8847,3944.2,3943.1,2.0]
[1734021281762,0.55,3944.1,3943.1,2.0]
[1734021282229,2.98192084,3944.0,3942.3,2.0]
[1734021282503,2.98192084,3944.0,3942.1,0.8531]
[1734021282504,0.8023,3943.8,3942.1,0.8531]
[1734021282664,2.95658762,3942.5,3942.0,0.005]
[1734021282870,0.55,3942.3,3942.0,0.005]
[1734021283070,0.02533322,3942.2,3942.0,0.005]
[1734021283295,0.98776332,3942.1,3942.0,0.005]
[1734021284313,0.62917177,3942.3,3942.0,0.005]
[1734021284515,0.55,3942.3,3942.0,0.005]
[1734021287709,0.54880532,3942.3,3942.0,0.005]
[1734021288008,0.8023,3942.4,3942.0,0.005]
[1734021288885,0.8178,3943.0,3942.0,0.005]
[1734021289986,3.04094029,3943.0,3942.0,0.005]
[1734021290307,0.8022,3942.8,3942.0,0.005]
[1734021290510,0.57533322,3942.7,3942.0,0.005]
[1734021290808,0.55,3942.5,3942.0,0.005]
[1734021291183,0.55,3942.3,3942.0,0.005]
[1734021291388,0.55,3942.1,3942.0,0.005]
[1734021291588,0.99478678,3942.1,3942.0,0.005]
[1734021291811,1.07395453,3942.1,3942.0,0.005]
[1734021292272,0.55,3942.1,3942.0,0.005]
[1734021293502,0.8845,3942.7,3942.0,0.005]
[1734021293687,0.8845,3943.4,3942.0,0.005]
[1734021293904,0.8845,3943.4,3942.1,2.807]
[1734021294109,0.8845,3943.4,3942.2,0.2812]
[1734021294325,2.96178354,3943.1,3942.0,0.005]
[1734021294625,0.91379102,3943.0,3942.0,0.005]
[1734021294775,0.83463322,3943.0,3942.0,0.005]
[1734021294972,0.8093,3943.0,3942.0,0.005]
[1734021295411,0.55,3942.9,3942.0,0.005]
[1734021295585,0.8093,3943.0,3942.0,0.005]
[1734021296312,0.02533322,3942.9,3942.0,0.005]
[1734021296514,0.68755724,3942.8,3942.0,0.005]
[1734021296689,0.57533322,3942.7,3942.0,0.005]
[1734021296900,0.55,3942.7,3942.0,0.005]
[1734021299119,0.55,3942.4,3942.0,0.005]
[1734021299413,0.57533322,3942.4,3942.0,0.005]
[1734021299606,0.55,3942.2,3942.0,0.005]
[1734021301830,0.02533322,3942.1,3942.0,0.005]
[1734021302602,4.36001676,3942.1,3942.0,0.005]
[1734021302840,7.43918842,3942.1,3942.0,0.005]
[1734021303039,7.4138552,3942.1,3942.0,0.005]
[1734021303192,8.17037974,3942.1,3942.0,0.005]
[1734021305029,4.45207166,3942.1,3942.0,0.005]
[1734021305195,6.8638552,3942.1,3942.0,0.005]
[1734021306536,7.4138552,3942.1,3942.0,0.005]
[1734021308436,7.41387633,3942.1,3942.0,0.005]
[1734021310141,7.54494478,3942.1,3942.0,0.005]